fUSD/lending_fUSD_20250107
["ID","MTS","AMOUNT","RATE_DAILY","PERIOD"]
[348066656,1736291446055,-500.0,9.55e-05,2]
[348066657,1736291446065,-262.00098096,9.55e-05,2]
[348066658,1736291446075,-500.0,9.55e-05,2]
[348066659,1736291446085,-500.0,9.55e-05,2]
[348066660,1736291446095,-2955.38,9.55e-05,2]
[348066661,1736291446104,-674.92,9.55e-05,2]
[348066662,1736291446114,-609.25851266,9.55e-05,2]
[348066663,1736291446123,-627.33,9.55e-05,2]
[348066664,1736291446133,-500.0,9.55e-05,2]
[348066665,1736291446142,-500.0,9.55e-05,2]
[348066666,1736291446152,-500.0,9.55e-05,2]
[348066668,1736291446162,-500.0,9.55e-05,2]
[348066669,1736291446172,-500.0,9.55e-05,2]
[348066670,1736291446182,-3966.62,9.55e-05,2]
[348066671,1736291446192,-777.73,9.55e-05,2]
[348066672,1736291446202,-746.55,9.55e-05,2]
[348066673,1736291446212,-541.8,9.55e-05,2]
[348066674,1736291446222,-320.74,9.55e-05,2]
[348066675,1736291446231,-500.0,9.55e-05,2]
[348066676,1736291446241,-500.0,9.55e-05,2]
[348066677,1736291446251,-740.58,9.55e-05,2]
[348066678,1736291446260,-500.0,9.55e-05,2]
[348066679,1736291446270,-310.83,9.55e-05,2]
[348066680,1736291446279,-640.25,9.55e-05,2]
[348066681,1736291446288,-500.0,9.55e-05,2]
[348066682,1736291446297,-904.57,9.55e-05,2]
[348066683,1736291446307,-500.0,9.55e-05,2]
[348066684,1736291446316,-517.82,9.55e-05,2]
[348066685,1736291446326,-975.45,9.55e-05,2]
[348066686,1736291446335,-500.0,9.55e-05,2]
[348066687,1736291446345,-946.25,9.55e-05,2]
[348066688,1736291446354,-782.46,9.55e-05,2]
[348066689,1736291446364,-909.84,9.55e-05,2]
[348066690,1736291446374,-500.0,9.55e-05,2]
[348066691,1736291446384,-500.0,9.55e-05,2]
[348066692,1736291446394,-500.0,9.55e-05,2]
[348066693,1736291446404,-500.0,9.55e-05,2]
[348066694,1736291446414,-619.74,9.55e-05,2]
[348066695,1736291446424,-500.0,9.55e-05,2]
[348066696,1736291446434,-500.0,9.55e-05,2]
[348066697,1736291446443,-500.0,9.55e-05,2]
[348066698,1736291446453,-500.0,9.55e-05,2]
[348066699,1736291446462,-500.0,9.55e-05,2]
[348066700,1736291446472,-1231.92,9.55e-05,2]
[348066701,1736291446481,-500.0,9.55e-05,2]
[348066702,1736291446491,-500.0,9.55e-05,2]
[348066703,1736291446501,-500.0,9.55e-05,2]
[348066704,1736291446510,-500.0,9.55e-05,2]
[348066705,1736291446520,-500.0,9.55e-05,2]
[348066706,1736291446530,-500.0,9.55e-05,2]
[348066707,1736291446540,-548.86,9.55e-05,2]
[348066708,1736291446549,-500.0,9.55e-05,2]
[348066709,1736291446559,-675.0,9.55e-05,2]
[348066710,1736291446568,-500.0,9.55e-05,2]
[348066711,1736291446578,-500.0,9.55e-05,2]
[348066712,1736291446589,-500.0,9.55e-05,2]
[348066713,1736291446599,-500.0,9.55e-05,2]
[348066714,1736291446609,-500.0,9.55e-05,2]
[348066715,1736291446619,-500.0,9.55e-05,2]
[348066716,1736291446629,-500.0,9.55e-05,2]
[348066717,1736291446639,-500.0,9.55e-05,2]
[348066718,1736291446648,-700.15,9.55e-05,2]
[348066719,1736291446658,-500.0,9.55e-05,2]
[348066720,1736291446668,-500.0,9.55e-05,2]
[348066721,1736291446678,-516.78,9.55e-05,2]
[348066722,1736291446688,-500.0,9.55e-05,2]
[348066723,1736291446698,-500.0,9.55e-05,2]
[348066724,1736291446709,-500.0,9.551e-05,2]
[348066725,1736291446720,-1247.08,9.551e-05,2]
[348066726,1736291446729,-936.9,9.551e-05,2]
[348066727,1736291446739,-1586.21,9.551e-05,2]
[348066728,1736291446748,-1596.61,9.551e-05,2]
[348066729,1736291446759,-2550.05,9.551e-05,2]
[348066730,1736291446768,-1352.54,9.551e-05,2]
[348066731,1736291446778,-4047.0,9.551e-05,2]
[348066732,1736291446788,-1860.62,9.551e-05,2]
[348066734,1736291446798,-1148.44,9.551e-05,2]
[348066736,1736291446807,-2847.45,9.551e-05,2]
[348066738,1736291446817,-1189.47,9.551e-05,2]
[348066739,1736291446826,-1663.09,9.551e-05,2]
[348066741,1736291446835,-537.26,9.551e-05,2]
[348066742,1736291446845,-1713.19,9.551e-05,2]
[348066743,1736291446854,-500.0,9.551e-05,2]
[348066744,1736291446864,-1363.97,9.551e-05,2]
[348066745,1736291446873,-918.71,9.551e-05,2]
[348066746,1736291446883,-805.69,9.551e-05,2]
[348066747,1736291446892,-2911.16,9.551e-05,2]
[348066748,1736291446902,-880.85,9.551e-05,2]
[348066749,1736291446911,-1548.59,9.551e-05,2]
[348066750,1736291446921,-6444.07,9.552e-05,2]
[348066751,1736291446931,-852.98,9.552e-05,2]
[348066752,1736291446941,-1697.6,9.552e-05,2]
[348066753,1736291446951,-3197.28,9.552e-05,2]
[348066754,1736291446961,-809.6,9.552e-05,2]
[348066755,1736291446971,-1321.27,9.552e-05,2]
[348066756,1736291446980,-569.31,9.685e-05,2]
[348066757,1736291446990,-500.0,9.685e-05,2]
[348066758,1736291446999,-510.51,9.685e-05,2]
[348066759,1736291447009,-500.0,9.685e-05,2]
[348066760,1736291447018,-567.8,9.685e-05,2]
[348066761,1736291447028,-500.0,9.685e-05,2]
[348066762,1736291447038,-500.0,9.685e-05,2]
[348066763,1736291447048,-500.0,9.685e-05,2]
[348066764,1736291447057,-500.0,9.685e-05,2]
[348066765,1736291447066,-543.28,9.685e-05,2]
[348066766,1736291447075,-694.1,9.685e-05,2]
[348066767,1736291447085,-500.0,9.685e-05,2]
[348066768,1736291447094,-500.0,9.685e-05,2]
[348066769,1736291447103,-500.0,9.685e-05,2]
[348066770,1736291447113,-500.0,9.685e-05,2]
[348066771,1736291447122,-710.54,9.685e-05,2]
[348066772,1736291447132,-500.0,9.685e-05,2]
[348066773,1736291447141,-500.0,9.685e-05,2]
[348066774,1736291447151,-500.0,9.685e-05,2]
[348066775,1736291447160,-507.5,9.685e-05,2]
[348066776,1736291447170,-1118.63,9.685e-05,2]
[348066777,1736291447179,-500.0,9.685e-05,2]
[348066778,1736291447190,-1268.47,9.685e-05,2]
[348066779,1736291447199,-500.0,9.685e-05,2]
[348066780,1736291447208,-572.65,9.685e-05,2]
[348066781,1736291447218,-500.0,9.685e-05,2]
[348066782,1736291447227,-1163.36,9.685e-05,2]
[348066783,1736291447236,-500.0,9.685e-05,2]
[348066784,1736291447246,-574.87,9.685e-05,2]
[348066785,1736291447255,-500.0,9.685e-05,2]
[348066786,1736291447264,-500.0,9.685e-05,2]
[348066787,1736291447274,-500.0,9.685e-05,2]
[348066788,1736291447283,-511.89,9.685e-05,2]
[348066789,1736291447292,-580.04,9.685e-05,2]
[348066790,1736291447302,-500.0,9.685e-05,2]
[348066791,1736291447312,-524.23,9.685e-05,2]
[348066792,1736291447321,-500.0,9.685e-05,2]
[348066793,1736291447331,-500.0,9.685e-05,2]
[348066794,1736291447340,-500.0,9.685e-05,2]
[348066795,1736291447350,-500.0,9.685e-05,2]
[348066796,1736291447359,-500.0,9.685e-05,2]
[348066797,1736291447369,-500.0,9.685e-05,2]
[348066798,1736291447378,-524.11,9.685e-05,2]
[348066799,1736291447387,-500.0,9.685e-05,2]
[348066800,1736291447397,-500.0,9.685e-05,2]
[348066801,1736291447406,-500.0,9.685e-05,2]
[348066802,1736291447416,-500.0,9.685e-05,2]
[348066803,1736291447425,-1382.11,9.685e-05,2]
[348066804,1736291447435,-1141.93,9.685e-05,2]
[348066805,1736291447445,-500.0,9.685e-05,2]
[348066806,1736291447454,-500.0,9.685e-05,2]
[348066807,1736291447463,-536.6,9.685e-05,2]
[348066808,1736291447472,-1308.22,9.685e-05,2]
[348066809,1736291447481,-500.0,9.685e-05,2]
[348066810,1736291447491,-500.0,9.685e-05,2]
[348066811,1736291447500,-514.07,9.685e-05,2]
[348066812,1736291447510,-500.0,9.685e-05,2]
[348066813,1736291447519,-793.68,9.685e-05,2]
[348066814,1736291447529,-1547.92,9.685e-05,2]
[348066815,1736291447538,-1221.54,9.685e-05,2]
[348066816,1736291447548,-823.49,9.685e-05,2]
[348066817,1736291447558,-1090.91,9.685e-05,2]
[348066818,1736291447567,-500.0,9.685e-05,2]
[348066819,1736291447577,-500.0,9.685e-05,2]
[348066820,1736291447586,-500.0,9.685e-05,2]
[348066821,1736291447596,-500.0,9.685e-05,2]
[348066822,1736291447606,-500.0,9.685e-05,2]
[348066823,1736291447616,-2519.14,9.685e-05,2]
[348066824,1736291447625,-500.0,9.685e-05,2]
[348066825,1736291447635,-597.0,9.685e-05,2]
[348066826,1736291447644,-1767.45,9.685e-05,2]
[348066827,1736291447654,-500.0,9.685e-05,2]
[348066828,1736291447664,-4160.59,9.685e-05,2]
[348066829,1736291447674,-500.0,9.685e-05,2]
[348066830,1736291447685,-500.0,9.685e-05,2]
[348066831,1736291447694,-731.71,9.685e-05,2]
[348066832,1736291447849,-500.0,9.685e-05,2]
[348066833,1736291447859,-2854.86,9.685e-05,2]
[348066834,1736291447869,-500.0,9.685e-05,2]
[348066835,1736291447879,-504.88,9.685e-05,2]
[348066836,1736291447889,-500.0,9.685e-05,2]
[348066837,1736291447899,-820.69,9.685e-05,2]
[348066838,1736291447908,-500.0,9.685e-05,2]
[348066839,1736291447918,-500.0,9.685e-05,2]
[348066840,1736291447927,-639.8,9.685e-05,2]
[348066841,1736291447937,-1437.07,9.685e-05,2]
[348066842,1736291447947,-551.91,9.685e-05,2]
[348066843,1736291447956,-3515.53,9.685e-05,2]
[348066844,1736291447966,-892.28,9.685e-05,2]
[348066845,1736291447976,-978.24,9.727e-05,2]
[348066846,1736291447985,-2318.63,9.727e-05,2]
[348066847,1736291447994,-6139.08,9.727e-05,2]
[348066848,1736291448003,-753.11,9.727e-05,2]
[348066849,1736291448013,-1464.41,9.727e-05,2]
[348066850,1736291448024,-889.09,9.727e-05,2]
[348066851,1736291448034,-2229.73,9.727e-05,2]
[348066852,1736291448044,-500.0,9.727e-05,2]
[348066853,1736291448054,-500.0,9.727e-05,2]
[348066854,1736291448064,-3692.29,9.727e-05,2]
[348066855,1736291448074,-4019.55,9.727e-05,2]
[348066856,1736291448084,-1730.14,9.727e-05,2]
[348066857,1736291448094,-685.88,9.727e-05,2]
[348066858,1736291448103,-500.0,9.727e-05,2]
[348066859,1736291448113,-917.57,9.727e-05,2]
[348066860,1736291448123,-1045.55,9.727e-05,2]
[348066861,1736291448132,-2665.93,9.727e-05,2]
[348066862,1736291448143,-2191.07,9.727e-05,2]
[348066863,1736291448152,-500.0,9.727e-05,2]
[348066864,1736291448163,-1716.18,9.727e-05,2]
[348066865,1736291448173,-902.13,9.727e-05,2]
[348066866,1736291448185,-500.0,9.727e-05,2]
[348066867,1736291448195,-1608.14,9.727e-05,2]
[348066868,1736291448206,-500.0,9.727e-05,2]
[348066869,1736291448216,-846.29,9.727e-05,2]
[348066870,1736291448225,-650.88,9.727e-05,2]
[348066871,1736291448235,-1294.77,9.727e-05,2]
[348066872,1736291448245,-2687.7,9.727e-05,2]
[348066873,1736291448255,-500.0,9.727e-05,2]
[348066874,1736291448264,-500.0,9.728e-05,2]
[348066875,1736291448274,-500.0,9.728e-05,2]
[348066876,1736291448284,-500.0,9.728e-05,2]
[348066877,1736291448294,-500.0,9.728e-05,2]
[348066878,1736291448304,-500.0,9.728e-05,2]
[348066879,1736291448314,-500.0,9.728e-05,2]
[348066880,1736291448324,-500.0,9.728e-05,2]
[348066881,1736291448333,-500.0,9.728e-05,2]
[348066882,1736291448343,-500.0,9.728e-05,2]
[348066883,1736291448351,-500.0,9.728e-05,2]
[348066884,1736291448361,-500.0,9.728e-05,2]
[348066885,1736291448371,-500.0,9.728e-05,2]
[348066886,1736291448380,-500.0,9.728e-05,2]
[348066887,1736291448390,-500.0,9.728e-05,2]
[348066888,1736291448400,-500.0,9.728e-05,2]
[348066889,1736291448410,-500.0,9.728e-05,2]
[348066890,1736291448420,-500.0,9.728e-05,2]
[348066891,1736291448430,-500.0,9.728e-05,2]
[348066892,1736291448445,-500.0,9.728e-05,2]
[348066893,1736291448455,-500.0,9.728e-05,2]
[348066894,1736291448465,-500.0,9.728e-05,2]
[348066895,1736291448475,-500.0,9.728e-05,2]
[348066896,1736291448486,-500.0,9.728e-05,2]
[348066897,1736291448496,-500.0,9.728e-05,2]
[348066898,1736291448506,-500.0,9.728e-05,2]
[348066899,1736291448517,-588.55853965,9.728e-05,2]
[348066900,1736291448527,-500.0,9.728e-05,2]
[348066901,1736291448537,-500.0,9.728e-05,2]
[348066902,1736291448547,-1023.02,9.728e-05,2]
[348066903,1736291448557,-500.0,9.728e-05,2]
[348066904,1736291448567,-500.0,9.728e-05,2]
[348066905,1736291448577,-500.0,9.728e-05,2]
[348066906,1736291448587,-500.0,9.728e-05,2]
[348066907,1736291448598,-849.18,9.728e-05,2]
[348066908,1736291448609,-500.0,9.728e-05,2]
[348066909,1736291448619,-500.0,9.728e-05,2]
[348066910,1736291448629,-500.0,9.728e-05,2]
[348066911,1736291448639,-500.0,9.728e-05,2]
[348066912,1736291448649,-924.65,9.728e-05,2]
[348066913,1736291448659,-500.0,9.728e-05,2]
[348066914,1736291448670,-500.0,9.728e-05,2]
[348066915,1736291448680,-1427.48,9.728e-05,2]
[348066916,1736291448693,-500.0,9.728e-05,2]
[348066917,1736291448703,-500.0,9.728e-05,2]
[348066918,1736291448717,-500.0,9.728e-05,2]
[348066919,1736291448726,-1131.21,9.728e-05,2]
[348066920,1736291448737,-500.0,9.728e-05,2]
[348066921,1736291448746,-500.0,9.728e-05,2]
[348066922,1736291448758,-866.89,9.728e-05,2]
[348066923,1736291448769,-500.0,9.728e-05,2]
[348066924,1736291448779,-1661.97,9.728e-05,2]
[348066925,1736291448790,-2846.17,9.728e-05,2]
[348066926,1736291448800,-1888.09,9.728e-05,2]
[348066927,1736291448809,-1089.7577,9.728e-05,2]
[348066928,1736291448819,-1191.56,9.728e-05,2]
[348066929,1736291448829,-1227.36397,9.728e-05,2]
[348066930,1736291448838,-4247.97,9.728e-05,2]
[348066931,1736291448849,-954.23,9.728e-05,2]
[348066932,1736291448859,-731.42,9.728e-05,2]
[348066933,1736291448869,-923.74,9.728e-05,2]
[348066934,1736291448879,-500.0,9.728e-05,2]
[348066935,1736291448890,-542.69,9.729e-05,2]
[348066936,1736291448900,-500.0,9.729e-05,2]
[348066937,1736291448911,-577.26,9.729e-05,2]
[348066938,1736291448921,-500.0,9.729e-05,2]
[348066939,1736291448930,-991.32,9.729e-05,2]
[348066940,1736291448943,-643.05,9.729e-05,2]
[348066941,1736291448952,-1022.92,9.729e-05,2]
[348066942,1736291448962,-500.0,9.729e-05,2]
[348066943,1736291448972,-1108.91,9.729e-05,2]
[348066944,1736291448982,-500.0,9.729e-05,2]
[348066945,1736291448993,-500.0,9.729e-05,2]
[348066946,1736291449002,-500.0,9.729e-05,2]
[348066947,1736291449012,-781.52,9.729e-05,2]
[348066948,1736291449022,-360.34433263,9.729e-05,2]
[348066949,1736291449032,-500.0,9.729e-05,2]
[348066950,1736291449042,-500.0,9.729e-05,2]
[348066951,1736291449053,-2781.57,9.787e-05,2]
[348066952,1736291449063,-500.0,9.787e-05,2]
[348066953,1736291449074,-1206.07,9.787e-05,2]
[348066954,1736291449084,-1656.39,9.787e-05,2]
[348066955,1736291449094,-1280.74,9.787e-05,2]
[348066956,1736291449103,-2178.35,9.787e-05,2]
[348066957,1736291449113,-1008.22,9.787e-05,2]
[348066958,1736291449123,-1460.1,9.787e-05,2]
[348066959,1736291449133,-859.49,9.787e-05,2]
[348066960,1736291449143,-2939.3,9.787e-05,2]
[348066961,1736291449152,-2452.94,9.787e-05,2]
[348066962,1736291449162,-500.0,9.824e-05,2]
[348066963,1736291449171,-500.0,9.824e-05,2]
[348066964,1736291449181,-657.14,9.824e-05,2]
[348066965,1736291449192,-500.0,9.824e-05,2]
[348066966,1736291449202,-500.0,9.824e-05,2]
[348066967,1736291449212,-603.6559,9.824e-05,2]
[348066968,1736291449221,-629.41,9.824e-05,2]
[348066969,1736291449231,-671.24,9.824e-05,2]
[348066970,1736291449241,-500.0,9.824e-05,2]
[348066971,1736291449250,-500.0,9.824e-05,2]
[348066972,1736291449259,-500.0,9.824e-05,2]
[348066973,1736291449269,-500.0,9.824e-05,2]
[348066974,1736291449278,-500.0,9.824e-05,2]
[348066975,1736291449288,-896.81,9.824e-05,2]
[348066976,1736291449298,-651.15,9.824e-05,2]
[348066977,1736291449308,-500.0,9.824e-05,2]
[348066978,1736291449318,-849.18,9.824e-05,2]
[348066979,1736291449327,-500.0,9.824e-05,2]
[348066980,1736291449337,-500.0,9.824e-05,2]
[348066981,1736291449346,-500.0,9.824e-05,2]
[348066982,1736291449356,-500.0,9.824e-05,2]
[348066983,1736291449365,-500.0,9.824e-05,2]
[348066984,1736291449375,-500.0,9.824e-05,2]
[348066985,1736291449384,-240.74862609,9.824e-05,2]
[348066986,1736291449407,-259.25137391,9.824e-05,2]
[348066987,1736291449416,-695.89,9.824e-05,2]
[348066988,1736291449425,-58.95862609,9.824e-05,2]
[348066989,1736291449438,-372.4199853,9.824e-05,2]
[348066990,1736291449447,-500.0,9.824e-05,2]
[348066991,1736291449456,-324.18491089,9.824e-05,2]
[348066992,1736291451323,-500.0,9.179e-05,2]
[348066993,1736291451333,-258.51152843,9.276e-05,2]
[348066994,1736291451345,-241.48847157,9.276e-05,2]
[348066995,1736291451355,-274.32,9.55e-05,2]
[348066996,1736291451365,-3083.25,9.728e-05,2]
[348066997,1736291451374,-319.99508911,9.824e-05,2]
[348066998,1736291451384,-500.0,9.824e-05,2]
[348066999,1736291451394,-556.68451506,9.824e-05,2]
[348067000,1736291451403,-500.0,9.824e-05,2]
[348067001,1736291451412,-36.04766354,9.824e-05,2]
[348067002,1736291451425,-463.95233646,9.824e-05,2]
[348067003,1736291451436,-721.47,9.824e-05,2]
[348067004,1736291451446,-530.45,9.824e-05,2]
[348067005,1736291451457,-500.0,9.824e-05,2]
[348067006,1736291451467,-758.29,9.824e-05,2]
[348067007,1736291451476,-500.0,9.824e-05,2]
[348067008,1736291451486,-500.0,9.824e-05,2]
[348067009,1736291451495,-500.0,9.824e-05,2]
[348067010,1736291451505,-864.75,9.824e-05,2]
[348067011,1736291451514,-517.32,9.824e-05,2]
[348067012,1736291451525,-500.0,9.824e-05,2]
[348067013,1736291451534,-332.55528933,9.824e-05,2]
[348067014,1736291451546,-167.44471067,9.824e-05,2]
[348067015,1736291451555,-772.29,9.824e-05,2]
[348067016,1736291451564,-210.87,9.824e-05,2]
[348067017,1736291451574,-500.0,9.824e-05,2]
[348067018,1736291451584,-388.29528921,9.824e-05,2]
[348067019,1736291451856,-732.4,9.137e-05,2]
[348067020,1736291451866,-121.94471079,9.824e-05,2]
[348067021,1736291451876,-578.9,9.824e-05,2]
[348067022,1736291451885,-500.0,9.824e-05,2]
[348067023,1736291451896,-500.0,9.824e-05,2]
[348067024,1736291451905,-500.0,9.824e-05,2]
[348067025,1736291451915,-500.0,9.824e-05,2]
[348067026,1736291451924,-500.0,9.824e-05,2]
[348067027,1736291451935,-500.0,9.824e-05,2]
[348067028,1736291451944,-697.26,9.824e-05,2]
[348067029,1736291451954,-500.0,9.824e-05,2]
[348067030,1736291451964,-500.0,9.824e-05,2]
[348067031,1736291451973,-500.0,9.824e-05,2]
[348067032,1736291451984,-62.17180379,9.824e-05,2]
[348067033,1736291452002,-724.21819621,9.824e-05,2]
[348067034,1736291452012,-275.78180379,9.824e-05,2]
[348067035,1736291452035,-224.21819621,9.824e-05,2]
[348067036,1736291452044,-509.04,9.824e-05,2]
[348067037,1736291452054,-561.16,9.824e-05,2]
[348067038,1736291452063,-500.0,9.824e-05,2]
[348067039,1736291452073,-791.29,9.824e-05,2]
[348067040,1736291452083,-236.80775576,9.824e-05,2]
[348067041,1736291452092,-500.0,9.824e-05,2]
[348067042,1736291452102,-787.04,9.824e-05,2]
[348067043,1736291452111,-855.67,9.824e-05,2]
[348067044,1736291452121,-500.0,9.824e-05,2]
[348067045,1736291452131,-500.0,9.824e-05,2]
[348067046,1736291452140,-500.0,9.824e-05,2]
[348067047,1736291452151,-500.0,9.824e-05,2]
[348067048,1736291452160,-500.0,9.824e-05,2]
[348067049,1736291452169,-500.0,9.824e-05,2]
[348067050,1736291452179,-500.0,9.824e-05,2]
[348067051,1736291452190,-193.40767137,9.824e-05,2]
[348067052,1736291452199,-738.04,9.824e-05,2]
[348067053,1736291452208,-500.0,9.824e-05,2]
[348067054,1736291452218,-826.52,9.824e-05,2]
[348067055,1736291452228,-798.29,9.824e-05,2]
[348067056,1736291452237,-500.0,9.824e-05,2]
[348067057,1736291452247,-517.69,9.824e-05,2]
[348067058,1736291452256,-846.51,9.824e-05,2]
[348067059,1736291452266,-538.75,9.824e-05,2]
[348067060,1736291452276,-500.0,9.824e-05,2]
[348067061,1736291452285,-1074.72,9.824e-05,2]
[348067062,1736291452459,-3561.99,9.824e-05,2]
[348067063,1736291452469,-702.93,9.824e-05,2]
[348067064,1736291452479,-500.0,9.824e-05,2]
[348067065,1736291452489,-500.0,9.824e-05,2]
[348067066,1736291452498,-381.39,9.824e-05,2]
[348067067,1736291452508,-2955.38,9.824e-05,2]
[348067068,1736291452519,-674.92,9.824e-05,2]
[348067069,1736291452529,-627.33,9.824e-05,2]
[348067070,1736291452538,-500.0,9.824e-05,2]
[348067071,1736291452548,-500.0,9.824e-05,2]
[348067072,1736291452557,-500.0,9.824e-05,2]
[348067073,1736291452566,-3966.62,9.824e-05,2]
[348067074,1736291452575,-777.73,9.824e-05,2]
[348067075,1736291452585,-746.55,9.824e-05,2]
[348067076,1736291452595,-541.8,9.824e-05,2]
[348067077,1736291452604,-500.0,9.824e-05,2]
[348067078,1736291452614,-500.0,9.824e-05,2]
[348067079,1736291452624,-740.58,9.824e-05,2]
[348067080,1736291452633,-500.0,9.824e-05,2]
[348067081,1736291452643,-640.25,9.824e-05,2]
[348067082,1736291452653,-904.57,9.824e-05,2]
[348067083,1736291452664,-450.33654381,9.824e-05,2]
[348067084,1736291452674,-517.82,9.824e-05,2]
[348067085,1736291452685,-975.45,9.824e-05,2]
[348067086,1736291452695,-500.0,9.824e-05,2]
[348067087,1736291452704,-464.51487384,9.824e-05,2]
[348067088,1736291452720,-260.51,9.824e-05,2]
[348067089,1736291452732,-221.22512616,9.824e-05,2]
[348067090,1736291452742,-782.46,9.824e-05,2]
[348067091,1736291452751,-909.84,9.824e-05,2]
[348067092,1736291452762,-125.07487384,9.824e-05,2]
[348067093,1736291452773,-374.92512616,9.824e-05,2]
[348067094,1736291452783,-173.43,9.824e-05,2]
[348067095,1736291452794,-442.76809682,9.824e-05,2]
[348067096,1736291452807,-57.23190318,9.824e-05,2]
[348067097,1736291452816,-619.74,9.824e-05,2]
[348067098,1736291452826,-500.0,9.824e-05,2]
[348067099,1736291452835,-500.0,9.824e-05,2]
[348067100,1736291452845,-1231.92,9.824e-05,2]
[348067101,1736291452854,-500.0,9.824e-05,2]
[348067102,1736291452864,-500.0,9.824e-05,2]
[348067103,1736291452874,-500.0,9.824e-05,2]
[348067104,1736291452884,-548.86,9.824e-05,2]
[348067105,1736291452893,-500.0,9.824e-05,2]
[348067106,1736291452903,-675.0,9.824e-05,2]
[348067107,1736291452912,-500.0,9.824e-05,2]
[348067108,1736291452922,-500.0,9.824e-05,2]
[348067109,1736291452931,-500.0,9.824e-05,2]
[348067110,1736291452942,-500.0,9.824e-05,2]
[348067111,1736291452951,-361.93,9.824e-05,2]
[348067112,1736291452961,-700.15,9.824e-05,2]
[348067113,1736291452970,-500.0,9.824e-05,2]
[348067114,1736291452980,-516.78,9.824e-05,2]
[348067115,1736291452990,-500.0,9.824e-05,2]
[348067116,1736291453000,-162.5,9.824e-05,2]
[348067117,1736291453009,-500.0,9.825e-05,2]
[348067118,1736291453018,-1247.08,9.825e-05,2]
[348067119,1736291453028,-936.9,9.825e-05,2]
[348067120,1736291453038,-1049.56742015,9.825e-05,2]
[348067121,1736291453081,-536.64257985,9.825e-05,2]
[348067122,1736291453091,-1398.04637754,9.825e-05,2]
[348067123,1736291453102,-198.56362246,9.825e-05,2]
[348067124,1736291453112,-2107.85468813,9.825e-05,2]
[348067125,1736291453123,-442.19531187,9.825e-05,2]
[348067126,1736291453133,-957.59867904,9.825e-05,2]
[348067127,1736291453149,-394.94132096,9.825e-05,2]
[348067128,1736291453159,-3101.22828716,9.825e-05,2]
[348067129,1736291453170,-300.0,9.825e-05,2]
[348067130,1736291453182,-645.77171284,9.825e-05,2]
[348067131,1736291453192,-774.22468195,9.825e-05,2]
[348067132,1736291453765,-1535.04,8.219e-05,2]
[348067133,1736291453775,-732.4,9.411e-05,2]
[348067134,1736291453785,-732.4,9.685e-05,2]
[348067135,1736291453794,-1086.39531805,9.825e-05,2]
[348067136,1736291453805,-1148.44,9.825e-05,2]
[348067137,1736291453815,-2847.45,9.825e-05,2]
[348067138,1736291453824,-1189.47,9.825e-05,2]
[348067139,1736291453833,-1663.09,9.825e-05,2]
[348067140,1736291453842,-537.26,9.825e-05,2]
[348067141,1736291453851,-1713.19,9.825e-05,2]
[348067142,1736291453861,-500.0,9.825e-05,2]
[348067143,1736291453870,-1363.97,9.825e-05,2]
[348067144,1736291453879,-918.71,9.825e-05,2]
[348067145,1736291453889,-805.69,9.825e-05,2]
[348067146,1736291453898,-2911.16,9.825e-05,2]
[348067147,1736291453907,-880.85,9.825e-05,2]
[348067148,1736291453916,-1548.59,9.825e-05,2]
[348067149,1736291453926,-852.98,9.826e-05,2]
[348067150,1736291453935,-809.6,9.826e-05,2]
[348067151,1736291453945,-3197.28,9.826e-05,2]
[348067152,1736291453954,-1321.27,9.826e-05,2]
[348067153,1736291453964,-255.0,9.903e-05,2]
[348067154,1736291453974,-3894.0,9.91e-05,2]
[348067155,1736291453983,-150.0,9.91e-05,2]
[348067156,1736291453992,-1173.0,9.91e-05,2]
[348067157,1736291454001,-9619.0,9.91e-05,2]
[348067158,1736291454010,-500.0,9.959e-05,2]
[348067159,1736291454020,-510.51,9.959e-05,2]
[348067160,1736291454029,-500.0,9.959e-05,2]